fUST/lending_fUST_20240116
["ID","MTS","AMOUNT","RATE_DAILY","PERIOD"]
[311779525,1705386639340,-500.0,0.00028219,2]
[311779526,1705386639349,-500.0,0.00028248,2]
[311779527,1705386639361,-1076.95,0.00028311,2]
[311779528,1705386639371,-500.0,0.00028312,2]
[311779529,1705386639380,-1677.0,0.00028312,2]
[311779530,1705386639389,-500.0,0.00028312,2]
[311779531,1705386639399,-500.0,0.00028312,2]
[311779532,1705386639408,-500.0,0.00028356,2]
[311779533,1705386639417,-9110.22573903,0.00028386,4]
[311779534,1705386639427,-500.0,0.00028413,2]
[311779535,1705386639436,-665.9,0.00028413,2]
[311779536,1705386639446,-500.0,0.00028413,2]
[311779537,1705386639455,-500.0,0.00028413,2]
[311779538,1705386639463,-500.0,0.00028413,2]
[311779539,1705386639473,-500.0,0.00028413,2]
[311779540,1705386639482,-500.0,0.00028413,2]
[311779541,1705386639491,-500.0,0.00028413,2]
[311779542,1705386639500,-500.0,0.00028416,2]
[311779543,1705386639510,-500.0,0.00028493,2]
[311779544,1705386639519,-198.9082381,0.00028493,2]
[311779545,1705386639528,-198.9082381,0.00028493,2]
[311779546,1705386639537,-198.9082381,0.00028493,2]
[311779547,1705386639546,-198.9082381,0.00028493,2]
[311779548,1705386639555,-198.9082381,0.00028493,2]
[311779549,1705386639564,-500.0,0.00028522,2]
[311779550,1705386639574,-280.0,0.00028544,15]
[311779551,1705386639583,-1076.95,0.00028585,2]
[311779552,1705386639593,-500.0,0.00028586,2]
[311779553,1705386639602,-1677.0,0.00028586,2]
[311779554,1705386639612,-500.0,0.00028586,2]
[311779555,1705386639621,-500.0,0.00028586,2]
[311779556,1705386639630,-500.0,0.0002863,2]
[311779557,1705386639640,-500.0,0.00028687,2]
[311779558,1705386639649,-665.9,0.00028687,2]
[311779559,1705386639658,-500.0,0.00028687,2]
[311779560,1705386639667,-500.0,0.00028687,2]
[311779561,1705386639676,-500.0,0.00028687,2]
[311779562,1705386639686,-500.0,0.00028687,2]
[311779563,1705386639695,-597.32,0.00028687,2]
[311779564,1705386639704,-500.0,0.00028687,2]
[311779565,1705386639713,-500.0,0.0002869,2]
[311779566,1705386639722,-500.0,0.00028767,2]
[311779567,1705386639731,-500.0,0.00028796,2]
[311779568,1705386639740,-1076.95,0.00028859,2]
[311779569,1705386639750,-500.0,0.0002886,2]
[311779570,1705386639759,-1677.0,0.0002886,2]
[311779571,1705386639768,-561.71,0.0002886,2]
[311779572,1705386639777,-500.0,0.0002886,2]
[311779573,1705386639787,-342.48819433,0.00028904,2]
[311779574,1705386639796,-606.68477192,0.00028961,2]
[311779575,1705386639805,-665.9,0.00028961,2]
[311779576,1705386639815,-500.0,0.00028961,2]
[311779577,1705386639824,-500.0,0.00028961,2]
[311779578,1705386639833,-500.0,0.00028961,2]
[311779579,1705386639842,-500.0,0.00028961,2]
[311779580,1705386639852,-500.0,0.00028961,2]
[311779581,1705386639861,-500.0,0.00028964,2]
[311779582,1705386639871,-155.77486132,0.00029,2]
[311779583,1705386639881,-2454.74382412,0.00029,2]
[311779584,1705386639890,-2000.0,0.00029,2]
[311779585,1705386639899,-2000.0,0.0002901,2]
[311779586,1705386639908,-2000.0,0.0002902,2]
[311779587,1705386639917,-2000.0,0.0002903,2]
[311779588,1705386639926,-2000.0,0.0002904,2]
[311779589,1705386639935,-2000.0,0.0002905,2]
[311779590,1705386639944,-282.12940782,0.00029051,2]
[311779591,1705386639954,-2000.0,0.0002906,2]
[311779592,1705386639963,-500.0,0.0002907,2]
[311779593,1705386639972,-3261.392649,0.0002907,2]
[311779594,1705386639981,-1076.95,0.00029133,2]
[311779595,1705386639990,-500.0,0.00029134,2]
[311779596,1705386640000,-1677.0,0.00029134,2]
[311779597,1705386640009,-500.0,0.00029134,2]
[311779598,1705386640017,-161.7286158,0.00029166,2]
[311779599,1705386640027,-665.9,0.00029235,2]
[311779600,1705386640036,-500.0,0.00029235,2]
[311779601,1705386640045,-500.0,0.00029235,2]
[311779602,1705386640055,-500.0,0.00029235,2]
[311779603,1705386640064,-500.0,0.00029235,2]
[311779604,1705386640083,-500.0,0.00029235,2]
[311779605,1705386640095,-500.0,0.00029238,2]
[311779606,1705386640105,-198.9082381,0.00029315,2]
[311779607,1705386640115,-198.9082381,0.00029315,2]
[311779608,1705386640125,-198.9082381,0.00029315,2]
[311779609,1705386640135,-198.9082381,0.00029315,2]
[311779610,1705386640144,-198.9082381,0.00029315,2]
[311779611,1705386640154,-198.9082381,0.00029315,2]
[311779612,1705386640164,-198.9082381,0.00029315,2]
[311779613,1705386640173,-198.9082381,0.00029315,2]
[311779614,1705386640183,-198.9082381,0.00029315,2]
[311779615,1705386640192,-198.9082381,0.00029315,2]
[311779616,1705386640202,-153.0,0.00029315,2]
[311779617,1705386640212,-306.2535945,0.00029315,2]
[311779618,1705386640222,-198.9082381,0.00029315,2]
[311779619,1705386640231,-306.2703506,0.00029315,2]
[311779621,1705386640241,-153.0,0.00029315,2]
[311779623,1705386640250,-198.9082381,0.00029315,2]
[311779625,1705386640260,-157.7642133,0.00029315,2]
[311779627,1705386640269,-198.9082381,0.00029315,2]
[311779629,1705386640279,-153.0,0.00029315,2]
[311779631,1705386640288,-198.9082381,0.00029315,2]
[311779633,1705386640297,-153.0,0.00029315,2]
[311779635,1705386640307,-198.9082381,0.00029315,2]
[311779637,1705386640316,-198.9082381,0.00029315,2]
[311779639,1705386640326,-153.0,0.00029315,2]
[311779641,1705386640335,-198.9082381,0.00029315,2]
[311779643,1705386640345,-198.9082381,0.00029315,2]
[311779645,1705386640355,-198.9082381,0.00029315,2]
[311779647,1705386640364,-198.9082381,0.00029315,2]
[311779649,1705386640374,-198.9082381,0.00029315,2]
[311779651,1705386640383,-198.9082381,0.00029315,2]
[311779652,1705386640392,-198.9082381,0.00029315,2]
[311779653,1705386640401,-198.9082381,0.00029315,2]
[311779654,1705386640412,-500.0,0.00029344,2]
[311779655,1705386640421,-1076.95,0.00029407,2]
[311779656,1705386640432,-500.0,0.00029408,2]
[311779657,1705386640441,-1677.0,0.00029408,2]
[311779658,1705386640451,-500.0,0.00029408,2]
[311779659,1705386640460,-155.0,0.0002942,2]
[311779660,1705386640469,-665.9,0.00029509,2]
[311779661,1705386640479,-500.0,0.00029509,2]
[311779662,1705386640488,-500.0,0.00029509,2]
[311779663,1705386640498,-500.0,0.00029512,2]
[311779664,1705386640508,-161.7286158,0.00029515,2]
[311779665,1705386640518,-500.0,0.00029618,2]
[311779666,1705386640528,-1076.95,0.00029681,2]
[311779667,1705386640540,-324.37,0.00029682,2]
[311779668,1705386640550,-1677.0,0.00029682,2]
[311779669,1705386640560,-500.0,0.00029682,2]
[311779670,1705386640569,-665.9,0.00029783,2]
[311779671,1705386640580,-500.0,0.00029783,2]
[311779672,1705386640590,-500.0,0.00029783,2]
[311779673,1705386640599,-206.83,0.00029786,2]
[311779674,1705386640609,-170.49492076,0.00029852,2]
[311779675,1705386640621,-13008.80069603,0.0002988,2]
[311779676,1705386640631,-305.34280228,0.0002988,2]
[311779677,1705386640640,-3317.6555251,0.0002988,2]
[311779678,1705386640650,-261.2512567,0.0002988,2]
[311779679,1705386640660,-575.16,0.00029892,2]
[311779680,1705386640669,-282.12940782,0.000299,2]
[311779681,1705386640679,-170.82124155,0.00029937,2]
[311779682,1705386640688,-1076.95,0.00029955,2]
[311779683,1705386640698,-1677.0,0.00029956,2]
[311779684,1705386640707,-500.0,0.00029956,2]
[311779685,1705386640717,-162.69671502,0.00029999,2]
[311779686,1705386640726,-487.21595598,0.00029999,4]
[311779687,1705386640735,-500.0,0.00029999,4]
[311779688,1705386640745,-609.27826206,0.00029999,4]
[311779689,1705386640754,-500.0,0.00029999,4]
[311779690,1705386640764,-500.0,0.00029999,4]
[311779691,1705386640773,-526.90794115,0.00029999,4]
[311779692,1705386640782,-500.0,0.00029999,4]
[311779693,1705386640792,-500.0,0.00029999,4]
[311779694,1705386640802,-500.0,0.00029999,4]
[311779695,1705386640811,-423.12980932,0.00029999,4]
[311779696,1705386640820,-500.0,0.00029999,4]
[311779697,1705386640830,-338.87669994,0.00029999,4]
[311779698,1705386640840,-500.0,0.00029999,4]
[311779699,1705386640849,-500.0,0.00029999,4]
[311779700,1705386640859,-500.0,0.00029999,4]
[311779701,1705386640868,-500.0,0.00029999,4]
[311779702,1705386640878,-500.0,0.00029999,2]
[311779703,1705386640888,-500.0,0.00029999,2]
[311779704,1705386640897,-500.0,0.00029999,2]
[311779705,1705386640907,-496.48110584,0.00029999,2]
[311779706,1705386640916,-500.0,0.00029999,2]
[311779707,1705386640926,-500.0,0.00029999,2]
[311779708,1705386640935,-505.45635661,0.00029999,2]
[311779709,1705386640945,-500.0,0.00029999,2]
[311779710,1705386640955,-609.20746457,0.00029999,2]
[311779711,1705386640964,-500.0,0.00029999,2]
[311779712,1705386640974,-500.0,0.00029999,2]
[311779713,1705386640984,-500.0,0.00029999,2]
[311779714,1705386640993,-500.0,0.00029999,2]
[311779715,1705386641002,-479.12541777,0.00029999,2]
[311779716,1705386641012,-500.0,0.00029999,2]
[311779717,1705386641022,-500.0,0.00029999,2]
[311779718,1705386641032,-500.0,0.00029999,2]
[311779719,1705386641041,-500.0,0.00029999,2]
[311779720,1705386641051,-500.0,0.00029999,2]
[311779721,1705386641061,-500.0,0.00029999,2]
[311779722,1705386641070,-308.99855006,0.00029999,2]
[311779723,1705386641080,-500.0,0.00029999,2]
[311779724,1705386641089,-500.0,0.00029999,2]
[311779725,1705386641099,-500.0,0.00029999,2]
[311779726,1705386641108,-500.0,0.00029999,2]
[311779727,1705386641117,-500.0,0.00029999,2]
[311779728,1705386641127,-500.0,0.00029999,2]
[311779729,1705386641135,-500.0,0.00029999,2]
[311779730,1705386641145,-500.0,0.00029999,2]
[311779731,1705386641155,-622.32759246,0.00029999,2]
[311779732,1705386641164,-500.0,0.00029999,2]
[311779733,1705386641173,-500.0,0.00029999,2]
[311779734,1705386641183,-500.0,0.00029999,2]
[311779735,1705386641192,-500.0,0.00029999,2]
[311779736,1705386641201,-500.0,0.00029999,2]
[311779737,1705386641210,-500.0,0.00029999,2]
[311779738,1705386641220,-500.0,0.00029999,2]
[311779739,1705386641228,-500.0,0.00029999,2]
[311779740,1705386641237,-500.0,0.00029999,2]
[311779741,1705386641246,-500.0,0.00029999,2]
[311779742,1705386641256,-500.0,0.00029999,2]
[311779743,1705386641265,-500.0,0.00029999,2]
[311779744,1705386641274,-500.0,0.00029999,2]
[311779745,1705386641284,-500.0,0.00029999,2]
[311779746,1705386641293,-500.0,0.00029999,2]
[311779747,1705386641302,-500.0,0.00029999,2]
[311779749,1705386641410,-500.0,0.00029999,2]
[311779751,1705386641420,-397.14314989,0.00029999,4]
[311779753,1705386641430,-485.27826575,0.00029999,2]
[311779755,1705386641439,-725.79588249,0.00029999,2]
[311779756,1705386641448,-725.79588249,0.00029999,2]
[311779758,1705386641457,-500.0,0.00029999,2]
[311779760,1705386641467,-725.79588249,0.00029999,2]
[311779761,1705386641476,-500.0,0.00029999,2]
[311779762,1705386641486,-500.0,0.00029999,2]
[311779763,1705386641496,-725.79588249,0.00029999,2]
[311779764,1705386641505,-500.0,0.00029999,2]
[311779765,1705386641514,-725.79588249,0.00029999,2]
[311779766,1705386641523,-500.0,0.00029999,2]
[311779767,1705386641533,-725.79588249,0.00029999,2]
[311779768,1705386641542,-500.0,0.00029999,2]
[311779769,1705386641552,-500.0,0.00029999,2]
[311779770,1705386641561,-725.79588249,0.00029999,2]
[311779771,1705386641571,-725.79588249,0.00029999,2]
[311779772,1705386641580,-725.79588249,0.00029999,2]
[311779773,1705386641589,-500.0,0.00029999,2]
[311779774,1705386641600,-725.79588249,0.00029999,2]
[311779775,1705386641609,-500.0,0.00029999,2]
[311779776,1705386641618,-725.79588249,0.00029999,2]
[311779777,1705386641627,-500.0,0.00029999,2]
[311779778,1705386641637,-500.0,0.00029999,2]
[311779779,1705386641646,-500.0,0.00029999,2]
[311779780,1705386641656,-725.79588249,0.00029999,2]
[311779781,1705386641665,-500.0,0.00029999,2]
[311779782,1705386641675,-725.79588249,0.00029999,2]
[311779783,1705386641685,-500.0,0.00029999,2]
[311779784,1705386641695,-300.94833214,0.00029999,2]
[311779785,1705386641705,-725.79588249,0.00029999,2]
[311779786,1705386641714,-725.79588249,0.00029999,2]
[311779787,1705386641724,-725.79588249,0.00029999,2]
[311779788,1705386641733,-500.0,0.00029999,2]
[311779789,1705386641743,-500.0,0.00029999,2]
[311779790,1705386641752,-725.79588249,0.00029999,2]
[311779791,1705386641761,-500.0,0.00029999,2]
[311779792,1705386641770,-881.32357156,0.00029999,2]
[311779793,1705386641781,-207.9763996,0.00029999,2]
[311779794,1705386641790,-500.0,0.00029999,2]
[311779795,1705386641799,-590.28449964,0.00029999,2]
[311779796,1705386641808,-377.73985455,0.00029999,2]
[311779797,1705386641817,-1338.63,0.00029999,2]
[311779798,1705386641827,-1338.63,0.00029999,2]
[311779799,1705386641837,-1338.63,0.00029999,2]
[311779800,1705386641847,-1338.63,0.00029999,2]
[311779801,1705386641857,-1338.63,0.00029999,2]
[311779802,1705386641866,-1338.63,0.00029999,2]
[311779803,1705386641876,-1338.63,0.00029999,2]
[311779804,1705386641885,-500.0,0.00029999,2]
[311779805,1705386641894,-302.19188363,0.00029999,2]
[311779806,1705386641903,-255.4797091,0.00029999,2]
[311779807,1705386641912,-507.44515137,0.0003,3]
[311779808,1705386641921,-3757.35908,0.0003,2]
[311779809,1705386641931,-12262.48123931,0.0003,2]
[311779810,1705386641941,-297.8809135,0.0003,4]
[311779811,1705386641951,-807.42,0.0003,2]
[311779812,1705386641961,-64259.0,0.0003,7]
[311779813,1705386641971,-686.8051383,0.0003,4]
[311779814,1705386641980,-639.80669723,0.0003,4]
[311779815,1705386641990,-155.41103011,0.0003,2]
[311779816,1705386641999,-20774.94157507,0.0003,4]
[311779817,1705386642009,-155.77495357,0.0003,4]
[311779818,1705386642018,-438.6008308,0.0003,5]
[311779819,1705386642027,-73100.11727155,0.0003,2]
[311779820,1705386642047,-2491.85870745,0.0003,2]
[311779821,1705386642127,-1008.90835748,0.00027206,3]
[311779838,1705386643133,-800.27965228,0.00027206,3]
[311779965,1705386739047,-2000000.0,0.00042989,31]
[311779967,1705386744663,-155.42090687,0.000345,120]
[311779968,1705386744690,-163.20323671,0.00035,45]
[311779969,1705386744714,-1034.390918,0.00035616,120]
[311779970,1705386744740,-1497.83574806,0.00038,120]
[311779971,1705386744764,-1702.33,0.000393,60]
[311779972,1705386744792,-3128.91674015,0.00041,90]
[311779973,1705386744821,-1034.390918,0.00041553,120]
[311779974,1705386744848,-2000.0,0.00042795,45]
[311779975,1705386744879,-509.0,0.00043,120]
[311779976,1705386744903,-4165.0,0.00043479,60]
[311779977,1705386744928,-2500.0,0.00044849,60]
[311779978,1705386744952,-339.51279872,0.000449,120]
[311779979,1705386744977,-155.0,0.00045,120]
[311779980,1705386745001,-927.78936173,0.00045,120]
[311779981,1705386745026,-355.78245233,0.00045,120]
[311779982,1705386745050,-500.0,0.00045,120]
[311779983,1705386745075,-209.71917499,0.00045,120]
[311779984,1705386745099,-500.0,0.00045,120]
[311779985,1705386745124,-244.78135444,0.00045,120]
[311779986,1705386745147,-327.24963751,0.00045,120]
[311779987,1705386745173,-500.0,0.00045,120]
[311779988,1705386745199,-530.58189811,0.00045,120]
[311779989,1705386745224,-500.0,0.00045,120]
[311779990,1705386745250,-500.0,0.00045,120]
[311779991,1705386745273,-500.0,0.00045,120]
[311779992,1705386745298,-277.30186614,0.00045,120]
[311779993,1705386745323,-500.0,0.00045,120]
[311779994,1705386745347,-500.0,0.00045,120]
[311779995,1705386745372,-434.70385774,0.00045,120]
[311779996,1705386745396,-500.0,0.00045,120]
[311779997,1705386745421,-500.0,0.00045,120]
[311779998,1705386745445,-500.0,0.00045,120]
[311779999,1705386745469,-1028.21083353,0.00045,120]
[311780000,1705386745495,-500.0,0.00045,120]
[311780001,1705386745634,-1028.21083353,0.00045,120]
[311780002,1705386745663,-500.0,0.00045,120]
[311780003,1705386745689,-1028.21083353,0.00045,120]
[311780004,1705386745715,-575.23708303,0.00045,120]
[311780005,1705386745741,-500.0,0.00045,120]
[311780006,1705386745768,-500.0,0.00045,120]
[311780007,1705386745795,-272.57112491,0.00045,120]
[311780008,1705386745820,-200.0,0.00045,120]
[311780009,1705386745847,-200.0,0.0004597,60]
[311780010,1705386745873,-200.0,0.0004597,60]
[311780011,1705386745901,-200.0,0.0004597,60]
[311780012,1705386745927,-200.0,0.0004597,60]
[311780013,1705386745956,-200.0,0.0004597,60]
[311780014,1705386745981,-200.0,0.0004597,60]
[311780015,1705386746004,-305.0,0.0004597,60]
[311780016,1705386746030,-237.0,0.00046849,90]
[311780017,1705386746052,-2500.0,0.00046904,90]
[311780018,1705386746075,-237.0,0.00047,90]
[311780019,1705386746100,-1034.390918,0.00047489,120]
[311780020,1705386746125,-2416.0,0.0004829,120]
[311780021,1705386746149,-237.0,0.00048904,90]
[311780022,1705386746172,-2665.0,0.00048959,120]
[311780023,1705386746197,-200.0,0.00049,120]
[311780024,1705386746219,-252.2544722,0.000495,120]
[311780025,1705386746243,-817.082,0.0004976,120]
[311780026,1705386746268,-223.841,0.0004976,120]
[311780027,1705386746292,-817.083,0.0004976,120]
[311780028,1705386746316,-223.842,0.0004976,120]
[311780029,1705386746339,-223.841,0.0004976,120]
[311780030,1705386746363,-817.083,0.0004976,120]
[311780031,1705386746389,-223.841,0.0004976,120]
[311780032,1705386746414,-817.083,0.0004976,120]
[311780033,1705386746438,-817.082,0.0004976,120]
[311780034,1705386746463,-223.841,0.0004976,120]
[311780035,1705386746488,-759910.54949898,0.0005,120]
[311780036,1705386746512,-1000000.0,0.0005,120]
[311780037,1705386746536,-190275.83453279,0.0005,120]
[311780038,1705386759862,-170.0,0.00046,90]
[311780039,1705386759890,-170.0,0.00048109,90]
[311780040,1705386759915,-809724.16546721,0.0005,120]
[311780041,1705386759943,-1000000.0,0.0005,120]
[311780042,1705386759968,-189935.83453279,0.0005,120]
[311780044,1705386763342,-3663.64572778,0.00042989,62]
[311780045,1705386763366,-2999.999999,0.00042989,61]
[311780046,1705386763390,-500.0,0.00042989,120]
[311780047,1705386763414,-1624.55825115,0.00042989,120]
[311780048,1705386763438,-2142.13837747,0.00042989,120]
[311780465,1705387834863,-155.0,0.00022561,4]
[311780466,1705387834873,-166.6666677,0.00022562,2]
[311780467,1705387834883,-65.84919871,0.00022624,2]
[311780468,1705387834979,-4075.43747958,0.00022624,2]
[311780469,1705387834991,-1036.85951357,0.00022624,2]
[311780470,1705387835000,-1783.81884388,0.00022625,2]
[311780482,1705387838409,-23116.18115612,0.00022625,2]
[311780484,1705387838418,-11469.6971553,0.0002288,2]
[311780486,1705387838427,-155.0,0.000235,2]
[311780488,1705387838436,-1246.00170131,0.00023894,2]
[311780489,1705387838445,-175.379653,0.00023959,2]
[311780490,1705387838454,-200.0,0.00024886,7]
[311780492,1705387838463,-4716.82638211,0.00025,2]
[311780494,1705387838472,-1045.05948708,0.00025,2]
[311780496,1705387838481,-1597.079666,0.00026,4]
[311780498,1705387838491,-2903.23170115,0.00026119,2]
[311780500,1705387838500,-500.0,0.00026119,2]
[311780502,1705387838509,-500.0,0.00026119,2]
[311780504,1705387838518,-500.0,0.00026119,2]
[311780506,1705387838527,-500.0,0.00026119,2]
[311780508,1705387838536,-500.0,0.00026119,2]
[311780510,1705387838546,-500.0,0.00026119,2]
[311780512,1705387838555,-500.0,0.00026119,2]
[311780514,1705387838565,-500.0,0.0002612,2]
[311780516,1705387838574,-500.0,0.0002612,2]
[311780518,1705387838584,-500.0,0.00026393,2]
[311780520,1705387838594,-517.68,0.00026393,2]
[311780522,1705387838603,-500.0,0.00026393,2]
[311780524,1705387838612,-500.0,0.00026393,2]
[311780526,1705387838622,-500.0,0.00026393,2]
[311780528,1705387838632,-500.0,0.00026394,2]
[311780530,1705387838642,-500.0,0.00026394,2]
[311780532,1705387838651,-491.22,0.00026667,2]
[311780534,1705387838661,-500.0,0.00026667,2]
[311780536,1705387838670,-500.0,0.00026667,2]
[311780538,1705387838679,-500.0,0.00026668,2]
[311780540,1705387838689,-500.0,0.00026668,2]
[311780542,1705387838699,-500.0,0.00026941,2]
[311780544,1705387838708,-500.0,0.00026941,2]
[311780546,1705387838717,-500.0,0.00026942,2]
[311780548,1705387838727,-976.30954437,0.00026998,2]
[311780550,1705387838736,-289.85545354,0.00027,2]
[311780551,1705387838745,-461.1686624,0.00027,2]
[311780554,1705387838755,-274.42712104,0.00027,2]
[311780555,1705387838764,-500.0,0.00027215,2]
[311780557,1705387838773,-500.0,0.00027215,2]
[311780559,1705387838783,-500.0,0.00027216,2]
[311780561,1705387838793,-280.0,0.00027375,15]
[311780563,1705387838802,-1506.6,0.00027377,3]
[311780565,1705387838811,-1807.91,0.00027387,3]
[311780567,1705387838821,-500.0,0.00027397,2]
[311780569,1705387838830,-500.0,0.00027397,2]
[311780571,1705387838839,-500.0,0.00027397,2]
[311780573,1705387838849,-500.0,0.00027397,2]
[311780575,1705387838858,-500.0,0.00027397,2]
[311780578,1705387838869,-500.0,0.00027397,2]
[311780580,1705387838880,-150.68547709,0.00027397,7]
[311780581,1705387838889,-1255.5,0.00027478,3]
[311780584,1705387838899,-553.8722645,0.00027488,2]
[311780586,1705387838908,-500.0,0.00027488,2]
[311780587,1705387838917,-500.0,0.00027488,2]
[311780589,1705387838926,-1344.91,0.00027488,2]
[311780591,1705387838936,-384.51514988,0.00027488,2]
[311780594,1705387838948,-500.0,0.00027488,2]
[311780596,1705387838958,-500.0,0.00027488,2]
[311780597,1705387838967,-500.0,0.00027488,2]
[311780600,1705387838977,-500.0,0.00027488,2]
[311780602,1705387838987,-500.0,0.00027488,2]
[311780603,1705387838997,-500.0,0.00027489,2]
[311780605,1705387839007,-188.60791532,0.00027489,2]
[311780608,1705387839018,-275.97906721,0.00027489,2]
[311780609,1705387839027,-500.0,0.0002749,2]
[311780611,1705387839036,-500.0,0.00027533,2]
[311780613,1705387839045,-2636.46,0.00027533,2]
[311780615,1705387839054,-500.0,0.00027533,2]
[311780617,1705387839064,-500.0,0.00027533,2]
[311780619,1705387839075,-500.0,0.00027534,2]
[311780621,1705387839085,-500.0,0.00027671,2]
[311780623,1705387839094,-198.9082381,0.00027671,2]
[311780625,1705387839104,-500.0,0.00027762,2]
[311780627,1705387839113,-1344.91,0.00027762,2]
[311780629,1705387839122,-500.0,0.00027762,2]
[311780631,1705387839131,-500.0,0.00027762,2]
[311780633,1705387839141,-500.0,0.00027763,2]
[311780635,1705387839150,-500.0,0.00027764,2]
[311780637,1705387839159,-2636.46,0.00027807,2]
[311780639,1705387839167,-500.0,0.00027807,2]
[311780641,1705387839177,-199.74,0.00027807,2]
[311780643,1705387839186,-500.0,0.00027808,2]
[311780645,1705387839195,-500.0,0.00027873,2]
[311780647,1705387839204,-500.0,0.00027873,2]
[311780649,1705387839213,-500.0,0.00027873,2]
[311780651,1705387839223,-500.0,0.00027873,2]
[311780653,1705387839232,-500.0,0.00027873,2]
[311780655,1705387839241,-506.47400644,0.00027873,2]
[311780657,1705387839250,-500.0,0.00027873,2]
[311780659,1705387839259,-500.0,0.00027873,2]
[311780661,1705387839268,-974.06,0.00027873,2]
[311780663,1705387839277,-500.0,0.00027874,2]
[311780665,1705387839287,-500.0,0.00027874,2]
[311780667,1705387839296,-500.0,0.00027874,2]
[311780669,1705387839305,-500.0,0.00027874,2]
[311780671,1705387839314,-500.0,0.00027874,2]
[311780673,1705387839323,-500.0,0.00027874,2]
[311780675,1705387839333,-500.0,0.00027874,2]
[311780677,1705387839342,-500.0,0.00027874,2]
[311780679,1705387839351,-11082.60666127,0.00027875,5]
[311780681,1705387839360,-5000.0,0.00027875,5]
[311780683,1705387839369,-5000.0,0.00027875,5]
[311780685,1705387839378,-8609.50546138,0.00027875,5]
[311780687,1705387839388,-9483.64809935,0.00027875,5]
[311780689,1705387839397,-5000.0,0.00027875,5]
[311780691,1705387839406,-42247.92281963,0.00027875,5]
[311780693,1705387839415,-5000.0,0.00027875,5]
[311780695,1705387839423,-500.0,0.00027945,2]
[311780697,1705387839433,-150.0,0.00027993,2]
[311780699,1705387839442,-150.295,0.00027993,2]
[311780701,1705387839451,-500.0,0.00028036,2]
[311780703,1705387839460,-1344.91,0.00028036,2]
[311780705,1705387839469,-500.0,0.00028036,2]
[311780707,1705387839479,-500.0,0.00028036,2]
[311780709,1705387839488,-500.0,0.00028037,2]
[311780711,1705387839497,-500.0,0.00028038,2]
[311780713,1705387839506,-2636.46,0.00028081,2]
[311780715,1705387839515,-500.0,0.00028081,2]
[311780717,1705387839525,-500.0,0.00028082,2]
[311780719,1705387839534,-500.0,0.00028147,2]
[311780721,1705387839543,-500.0,0.00028147,2]
[311780723,1705387839552,-500.0,0.00028147,2]
[311780725,1705387839562,-500.0,0.00028147,2]
[311780727,1705387839570,-500.0,0.00028147,2]
[311780729,1705387839579,-974.06,0.00028147,2]
[311780731,1705387839589,-500.0,0.00028148,2]
[311780733,1705387839598,-500.0,0.00028148,2]
[311780735,1705387839607,-500.0,0.00028148,2]
[311780737,1705387839616,-500.0,0.00028148,2]
[311780739,1705387839626,-500.0,0.00028148,2]
[311780741,1705387839636,-500.0,0.00028148,2]
[311780743,1705387839644,-500.0,0.00028219,2]
[311780745,1705387839654,-501.08,0.0002831,2]
[311780747,1705387839663,-1344.91,0.0002831,2]
[311780749,1705387839672,-500.0,0.0002831,2]